Cogmind - Beta 13 @@@ ROGUE MODE // 2024.05.17 @ 01:12:45 Player: Decinym Result: Destroyed by Y-54 Guardian with Gatling Laser Performance ------------- Evolutions (3) 1500 Regions Visited (18) 3600 Robots Destroyed (170) 850 Value Destroyed (8941) 8941 Prototype IDs (35) 700 Alien Tech Used (0) 0 Bonus (4991) 4991 TOTAL SCORE: 20582 Bonus ------- High Alert Combat Kills 1464 Follower Combat Kills 2067 Entered Garrisons 1000 Used RIF Installer 2500 Aligned with FarCom 300 Friendly Fire -2340 Cogmind --------- Core Integrity 0/700 Matter 91/300 Energy 350/350 System Corruption 15% Temperature Warm (177) Movement Rolling (123) Ox2 Location -7/Garrison Parts ------- > --- POWER (2) -------- Light Deuterium Engine Fission Core > --- PROPULSION (4) --- Armored Wheel Armored Wheel Armored Huge Wheel > --- UTILITY (5) ------ Huge Storage Unit Advanced Transmission Jammer Medium Reactive Plating Relay Coupler [NC] (22) Relay Coupler [Sentry] (15) > --- WEAPON (2) ------- Smartbomb Launcher > --- INVENTORY (25) --- Light Treads Improved Medium Treads Damper Plating Relay Coupler [NC] (27) Relay Coupler [Grunt] (26) Relay Coupler [Grunt] (27) Relay Coupler [Grunt] (33) Relay Coupler [Sentry] (22) Relay Coupler [Hunter] (23) Relay Coupler [Behemoth] (11) Relay Coupler [Behemoth] (12) Relay Coupler [Behemoth] (9) Flak Gun Railgun Heavy Mass Driver Heavy Mace Peak State ------------ > --- POWER ------------ Improved Deuterium Engine Light Quantum Reactor > --- PROPULSION ------- Heavy Treads Heavy Treads > --- UTILITY ---------- Improved Cooling System Huge Storage Unit Improved Medium Armor Plating Relay Coupler [Grunt] Relay Coupler [Hunter] > --- WEAPON ----------- Advanced Plasma Cannon 8R-AWN's Boregun > --- INVENTORY -------- Heavy Deuterium Engine Antimatter Reactor Improved Medium Treads Heavy Treads Improved Cooling System Advanced Salvage Targeting Computer Improved Light Armor Plating Damper Plating Relay Coupler [Grunt] Relay Coupler [Behemoth] AS-neutralizer No. 17b Long-range Proton Cannon Autogun Mini Grenade Launcher Smartbomb Launcher Remote Datajack Heavy Mace Lance [Rating: 81] Favorites ----------- Power Reinforced Fission Core Engine Improved Deuterium Engine Power Core Reinforced Fission Core Reactor Antimatter Reactor Propulsion Light Treads Treads Light Treads Leg Aluminum Leg Wheel Armored Huge Wheel Utility Huge Storage Unit Device Improved Cooling System Storage Huge Storage Unit Processor Experimental Targeting Computer Hackware Relay Coupler [Sentry] Protection Improved Light Armor Plating Weapon Advanced Plasma Cannon Energy Gun Beamcaster Energy Cannon Advanced Plasma Cannon Ballistic Gun Autogun Ballistic Cannon Heavy Mass Driver Launcher Mini Grenade Launcher Special Weapon Remote Datajack Impact Weapon Heavy Mace Build | -11 -10 -10 -9 -9 -9 -8 -8 -8 -8 -8 -7 -7 -7 -7 -7 -7 -7 -7 ------- Run | Yrd Mat Min Mat Min Exi Min Mat Gar Mat Gar Fac Was Fac Gar Fac Gar Fac Gar Slots Evolved 6 | . . . 2 . . . 2 . . . 2 . . . . . . . Power 1 | . . . . . . . . . . . 1 . . . . . . . Propulsion 2 | . . . 1 . . . 1 . . . . . . . . . . . Utility 3 | . . . 1 . . . 1 . . . 1 . . . . . . . Weapon . | . . . . . . . . . . . . . . . . . . . Parts Attached 241 | . 8 6 19 1 23 . 9 6 7 38 9 14 10 26 15 42 4 4 Power 24 | . 1 . 2 . 2 . . . 1 . 2 1 4 3 1 6 1 . Engine 15 | . 1 . 2 . 1 . . . . . 2 1 4 1 . 3 . . Core 5 | . . . . . 1 . . . 1 . . . . . . 2 1 . Reactor 4 | . . . . . . . . . . . . . . 2 1 1 . . Propulsion 48 | . 3 . 8 1 5 . 5 2 4 7 1 5 . 1 3 3 . . Treads 38 | . . . 8 . 5 . 5 2 4 7 1 5 . 1 . . . . Leg . | . . . . . . . . . . . . . . . . . . . Wheel 10 | . 3 . . 1 . . . . . . . . . . 3 3 . . Hover . | . . . . . . . . . . . . . . . . . . . Flight . | . . . . . . . . . . . . . . . . . . . Utility 76 | . 2 1 6 . 8 . 2 3 . 13 5 4 3 11 4 12 2 . Device 22 | . 1 . 1 . 4 . . 2 . 2 5 1 . . 2 3 1 . Storage 3 | . 1 . . . 1 . 1 . . . . . . . . . . . Processor 7 | . . 1 2 . 1 . 1 1 . . . . . . . 1 . . Hackware 20 | . . . . . . . . . . 5 . 1 . 8 2 4 . . Protection 24 | . . . 3 . 2 . . . . 6 . 2 3 3 . 4 1 . Artifact . | . . . . . . . . . . . . . . . . . . . Weapon 93 | . 2 5 3 . 8 . 2 1 2 18 1 4 3 11 7 21 1 4 Energy Gun 9 | . . 1 1 . 1 . . . 1 . . 1 . . 2 2 . . Energy Cannon 8 | . . . . . . . . 1 . . 1 1 . 1 1 3 . . Ballistic Gun 39 | . 1 3 2 . 5 . 2 . 1 11 . 1 2 2 1 6 1 1 Ballistic Cannon 5 | . . . . . . . . . . . . . . 1 1 2 . 1 Launcher 12 | . 1 1 . . 2 . . . . 1 . . 1 2 . 2 . 2 Special Weapon 13 | . . . . . . . . . . 1 . 1 . 4 2 5 . . Impact Weapon 7 | . . . . . . . . . . 5 . . . 1 . 1 . . Slashing Weapon . | . . . . . . . . . . . . . . . . . . . Piercing Weapon . | . . . . . . . . . . . . . . . . . . . Special Melee Weapon . | . . . . . . . . . . . . . . . . . . . Unidentified Prototypes 7 | . . . . . 4 . . . . . . 1 1 . 1 . . . Parts Lost 60 | . . 3 2 . 13 . 3 . . 13 1 3 2 3 1 15 . 1 Power 9 | . . . . . 2 . . . . . 1 . . 2 . 4 . . Propulsion 14 | . . . . . 4 . 1 . . 6 . 1 . . . 2 . . Utility 20 | . . 1 2 . 3 . 2 . . 3 . 2 1 . 1 5 . . Weapon 17 | . . 2 . . 4 . . . . 4 . . 1 1 . 4 . 1 Highest Loss Streak 12 | . . 3 1 . 12 . 3 . . 7 1 2 1 2 1 3 . 1 To Critical Strikes 7 | . . . . . 7 . . . . . . . . . . . . . Average Slot Usage (%) 91 | . 96 99 99 100 96 100 98 98 99 97 99 92 83 80 78 74 87 89 Engine 6 | . 14 14 11 11 10 . . . . . 11 14 14 7 2 2 7 7 Core 3 | . . . . . . 11 9 9 8 9 3 . . . . 1 7 7 Reactor 1 | . . . . . . . . . . . . . . 6 11 6 . . Treads 22 | . . . 33 31 32 33 35 35 36 35 30 23 15 14 5 . . . Wheel 4 | . 20 28 . 1 . . . . . . . . . . 8 16 23 23 Device 9 | . 9 5 . 11 8 11 8 16 18 10 21 11 7 7 6 5 2 7 Storage 8 | . 15 14 11 11 11 11 9 9 9 9 7 7 7 7 7 7 7 7 Processor 6 | . . 7 12 11 11 11 17 9 9 9 7 3 . . . 2 . . Hackware 5 | . . . . . . . . . . 1 . 6 7 15 23 13 15 15 Protection 4 | . . . 8 . . . . . . 6 . 5 15 7 . 2 7 7 Energy Gun 2 | . . 7 11 11 5 11 . . 1 . . . . . 3 1 . . Energy Cannon 3 | . . . . . . . . 7 9 1 6 7 7 4 . 1 . . Ballistic Gun 8 | . 27 19 11 11 10 11 17 10 7 10 7 4 6 1 . 6 15 10 Naked Turns . | . . . . . . . . . . . . . . . . . . . Heaviest Build 143 | 11 52 51 58 57 73 73 108 116 116 119 139 126 143 129 134 138 128 136 Greatest Support 140 | 20 26 26 60 60 60 60 80 80 82 100 100 140 140 140 140 56 52 52 Greatest Overweight (x) 5 | . 1 1 . 5 5 1 1 1 1 2 1 1 1 . 4 2 2 2 Average Overweight (x) . | . . 1 . . . 1 . 1 1 1 1 . . . 1 1 2 2 Largest Inventory Capacity 25 | . 20 20 20 20 20 20 25 25 25 25 25 25 25 25 25 25 25 25 Average Capacity 23 | . 16 20 20 20 20 20 23 25 25 25 25 25 25 25 25 25 25 25 Most Carried 25 | . 15 20 20 20 20 16 23 25 25 25 23 25 25 25 25 25 24 24 Average Carried 22 | . 11 17 19 20 17 16 20 23 24 23 21 23 24 23 24 22 23 21 Final Capacity 25 | 8 20 20 20 20 20 20 25 25 25 25 25 25 25 25 25 25 25 25 Final Carried 25 | 6 15 20 20 20 16 16 23 25 24 23 23 25 23 25 24 24 23 20 Class Distribution -------------------- 36% | Scavenger-Mutant 29% | Bothacker-Mutant 21% | Mutant 11% | Botlord-Mutant Dominant Class ---------------- Mutant | -10/Materials Mutant | -10/Mines Scavenger-Mutant | -9/Materials Scavenger-Mutant | -9/Mines Scavenger-Mutant | -9/Exiles Scavenger-Mutant | -8/Mines Mutant | -8/Materials Scavenger-Mutant | -8/Garrison Mutant | -8/Materials Bothacker-Mutant | -8/Garrison Bothacker-Mutant | -7/Factory Bothacker-Mutant | -7/Waste Bothacker-Mutant | -7/Factory Botlord-Mutant | -7/Garrison Botlord-Mutant | -7/Factory Bothacker-Mutant | -7/Garrison Scavenger-Mutant | -7/Factory Scavenger-Mutant | -7/Garrison Resources | -11 -10 -10 -9 -9 -9 -8 -8 -8 -8 -8 -7 -7 -7 -7 -7 -7 -7 -7 ----------- Run | Yrd Mat Min Mat Min Exi Min Mat Gar Mat Gar Fac Was Fac Gar Fac Gar Fac Gar Matter Collected 6173 | 180 285 142 359 26 423 99 199 128 213 839 296 194 282 860 345 1180 35 88 Remotely 296 | . . . . . . . . . . . 296 . . . . . . . Salvage Created 7602 | . 382 199 1158 35 127 99 223 141 229 835 438 414 587 887 545 1139 35 129 Parts 376 | . 25 17 71 6 10 3 22 3 16 46 18 9 19 42 24 39 1 5 Haulers Intercepted 12 | . 2 . 3 . . . 1 . . . 3 . 2 . 1 . . . Recyclers Shooed 7 | . 1 2 2 . . . . . . . 2 . . . . . . . Parts Field Recycled . | . . . . . . . . . . . . . . . . . . . Retrieved Matter . | . . . . . . . . . . . . . . . . . . . Parts Self-Destructed . | . . . . . . . . . . . . . . . . . . . Prevented . | . . . . . . . . . . . . . . . . . . . Kills | -11 -10 -10 -9 -9 -9 -8 -8 -8 -8 -8 -7 -7 -7 -7 -7 -7 -7 -7 ------- Run | Yrd Mat Min Mat Min Exi Min Mat Gar Mat Gar Fac Was Fac Gar Fac Gar Fac Gar Combat Hostiles Destroyed 131 | . 11 7 18 . 3 . 5 . 4 19 3 1 7 21 6 20 . 6 Melee 1 | . . . . . . . . . . . . . . . 1 . . . Guns 67 | . 8 3 18 . 1 . 5 . . 13 . . 3 2 5 8 . 1 Cannons 33 | . . . . . . . . . 4 4 3 1 2 12 . 6 . 1 AOE 25 | . 3 4 . . 2 . . . . 2 . . 1 4 . 5 . 4 Classes Destroyed 21 | . 3 2 5 1 1 . . . 2 4 . 2 . . . . . 1 Worker 6 | . . 1 1 1 . . . . . . . . 1 . 2 . . . Builder 2 | . . . 1 . . . . . . . . . . . 1 . . . Tunneler 1 | . . . . 1 . . . . . . . . . . . . . . Hauler 12 | . 2 . 3 . . . 1 . . . 3 . 2 . 1 . . . Recycler 6 | . . . 2 . . 1 . . . . 2 . . . 1 . . . Mechanic 2 | . . 1 1 . . . . . . . . . . . . . . . Operator 1 | . . . . . . . . . 1 . . . . . . . . . Watcher 3 | . . . 1 . . . . . . . . . 1 . . 1 . . Swarmer 25 | . 5 3 3 . . . 3 . . 1 . . . 3 . 7 . . Cutter 3 | . . . . . . . . . . 2 . . . . . . . 1 Grunt 58 | . 6 4 10 . . . . . . 7 2 . 4 10 4 9 . 2 Brawler 2 | . . . . . . . . . . . . . . . . . . 2 Duelist 6 | . . . 1 . . . . . . 2 . . . 1 1 . . 1 Protector 1 | . . . . . . . . . . 1 . . . . . . . . Sentry 17 | . . . 4 . . . 2 . 3 2 . . 1 4 . 1 . . Hunter 5 | . . . . . . . . . 1 1 . . . . . 3 . . Programmer 8 | . . . . . . . . . . 2 1 . 1 3 1 . . . Behemoth 1 | . . . . . . . . . . 1 . . . . . . . . Compactor 1 | . . . . . . . . . . . . 1 . . . . . . Assembled 2 | . . . . . 2 . . . . . . . . . . . . . Surgeon 2 | . . . . . . . . . . . . . 2 . . . . . Thug 4 | . . . . . . . . . . . . . 3 . 1 . . . Martyr 2 | . . . . . . . . . . . . 2 . . . . . . Guerrilla 1 | . . . . . . . . . . . . . . . . . 1 . Best Kill Streak 8 | . 4 8 6 1 2 1 3 . 2 4 3 1 3 5 7 3 . 5 Combat Bots Only 7 | . 4 7 5 . 2 . 3 . 1 4 2 1 3 5 2 3 . 5 Max Kills in Single Turn 6 | . 2 3 2 1 2 1 1 . 1 1 1 1 6 2 1 2 1 2 Gunslinging . | . . . . . . . . . . . . . . . . . . . Exploded 2 | . 2 2 . . 2 . . . . 1 . . 1 2 . 2 . 2 Melee 1 | . . . . . . . . . . . . . . . 1 . . . Uniques/NPCs Destroyed 1 | . . . . . 1 . . . . . . . . . . . . . 8R-AWN (-9/Exiles) Combat | -11 -10 -10 -9 -9 -9 -8 -8 -8 -8 -8 -7 -7 -7 -7 -7 -7 -7 -7 -------- Run | Yrd Mat Min Mat Min Exi Min Mat Gar Mat Gar Fac Was Fac Gar Fac Gar Fac Gar Hostile Shots Fired 1257 | . 43 25 77 . 100 . 69 . 24 234 17 1 17 286 50 245 . 69 Missed 365 | . 10 6 16 . 17 . 22 . 6 56 3 . 6 99 16 79 . 29 Damage Taken 14033 | . 325 256 786 . 1484 . 865 . 312 3683 238 252 632 2240 592 1986 . 382 Core 1666 | . 58 68 87 . 261 . 127 . 15 345 11 . 16 195 81 316 . 86 Absorbed by Shields 537 | . . . . . 143 . . . . 50 86 65 . . 70 123 . . Reduced by Siege Mode 16 | . . . . . . . . . . . . . . 16 . . . . Ignored by Resistances 53 | . . . . . . . . . . . . . . . . 17 . 36 Regen/Repaired (Parts) 306 | . . . . . . . . . 132 . . 151 23 . . . . . Core Remaining (%) 43 | 100 . 49 . . . 13 . . . 11 . . . . . . . . Volleys Fired 645 | . 35 15 62 2 50 1 21 14 16 96 18 13 26 102 36 124 . 14 Largest 2 | . 2 2 2 2 2 2 2 2 2 2 2 2 2 2 2 2 . 2 Hottest 163 | . 40 76 98 98 98 105 46 121 163 123 128 128 128 128 100 128 . 75 Shots Fired 1056 | . 68 26 124 4 93 2 42 28 32 184 36 21 50 119 54 153 2 18 Gun 730 | . 66 22 124 4 91 2 42 20 16 149 18 7 26 18 35 80 2 8 Cannon 247 | . . . . . . . . 8 16 27 18 8 23 79 5 61 . 2 Launcher 30 | . 2 4 . . 2 . . . . 2 . . 1 6 . 5 . 8 Special 49 | . . . . . . . . . . 6 . 6 . 16 14 7 . . Kinetic 666 | . 66 21 62 2 82 1 42 20 13 149 18 7 26 42 13 90 2 10 Thermal 248 | . . 1 62 2 9 1 . 8 19 27 18 8 23 30 27 13 . . Explosive 30 | . 2 4 . . 2 . . . . 2 . . 1 6 . 5 . 8 Electromagnetic 63 | . . . . . . . . . . . . . . 25 . 38 . . Robot Hit Streak 31 | . 6 8 20 4 10 4 17 20 13 31 25 27 28 11 11 19 1 6 Robot Miss Streak 6 | . 5 2 2 . 4 . 2 1 4 3 1 . 6 4 2 6 1 4 Penetration Max 2 | . . . . . . . . . . 2 . . . . 2 . . . Secondary Targets 9 | . 2 1 3 . . . . . . . . . . . . 3 . . Max Gunslinging Chain 1 | . 1 1 1 . . . . . . . . . . . . 1 . . Shots Hit Robots 701 | . 38 16 91 3 69 1 30 16 25 143 28 17 23 64 40 87 1 9 Core Hits 291 | . 20 14 37 2 16 1 9 8 9 46 9 5 13 24 21 43 1 13 Critical Kills 12 | . 1 . . . . . . . . . . . 1 3 4 3 . . Critical Parts Destroyed 11 | . 1 . . . . . . . . 3 . . . 1 2 4 . . Critical Strikes 39 | . 2 . 7 . 2 . . . . 4 . . 1 6 8 9 . . Burn 12 | . . . 7 . 2 . . . . . . . . . 2 1 . . Meltdown 3 | . . . . . . . . . . . . . 1 2 . . . . Destroy 20 | . 2 . . . . . . . . 4 . . . 2 6 6 . . Blast 3 | . . . . . . . . . . . . . . 2 . 1 . . Smash 1 | . . . . . . . . . . . . . . . . 1 . . Melee Attacks 18 | . . . . . . . . . . 13 . . . 1 . 4 . . Impact 18 | . . . . . . . . . . 13 . . . 1 . 4 . . Slashing . | . . . . . . . . . . . . . . . . . . . Piercing . | . . . . . . . . . . . . . . . . . . . Sneak Attacks . | . . . . . . . . . . . . . . . . . . . Combat Hostiles . | . . . . . . . . . . . . . . . . . . . Follow-up Attacks . | . . . . . . . . . . . . . . . . . . . Damage Inflicted 18480 | . 605 529 1638 61 1172 22 462 337 626 2712 822 326 1920 2384 1199 2627 14 1024 Guns 8577 | . 432 163 1638 61 1086 22 462 200 199 1880 280 95 241 174 703 862 14 65 Cannons 5406 | . . . . . . . . 137 427 665 542 231 581 1623 85 965 . 150 Explosions 4213 | . 152 366 . . 86 . . . . 167 . . 955 559 356 763 . 809 Melee 34 | . . . . . . . . . . . . . . . . 34 . . Ramming 250 | . 21 . . . . . . . . . . . 143 28 55 3 . . Kinetic 7763 | . 432 148 684 18 937 . 462 200 150 1880 280 95 241 731 278 998 14 215 Thermal 6020 | . . 15 954 43 149 22 . 137 476 665 542 231 1536 589 510 151 . . Explosive 3258 | . 152 366 . . 86 . . . . 167 . . . 559 356 763 . 809 Electromagnetic 1155 | . . . . . . . . . . . . . . 477 . 678 . . Impact 34 | . . . . . . . . . . . . . . . . 34 . . Slashing . | . . . . . . . . . . . . . . . . . . . Piercing . | . . . . . . . . . . . . . . . . . . . Highest Corruption 15 | . . . . . . . . . . . 4 9 10 14 15 15 15 15 Average Corruption 11 | . . . . . . . . . . . 1 6 9 13 14 15 15 15 Corruption Purged . | . . . . . . . . . . . . . . . . . . . Corruption Blocked . | . . . . . . . . . . . . . . . . . . . Effects 262 | . . . . . . . . . . . 1 18 46 81 22 72 15 7 Message Errors 66 | . . . . . . . . . . . . 8 7 26 8 16 1 . Matter Fused 65 | . . . . . . . . . . . . 2 11 22 3 20 5 2 Heat Flow Errors 24 | . . . . . . . . . . . . 4 4 4 . 9 1 2 Energy Discharges 30 | . . . . . . . . . . . . 1 9 9 3 7 1 . Parts Rejected 5 | . . . . . . . . . . . . 1 1 . 1 1 1 . Parts Fused 2 | . . . . . . . . . . . 1 . . . . 1 . . Data Loss (minor) 30 | . . . . . . . . . . . . . 7 7 5 5 4 2 Data Loss (major) 12 | . . . . . . . . . . . . . 2 5 . 5 . . Misfires 11 | . . . . . . . . . . . . 1 2 2 1 3 2 . Alerts 6 | . . . . . . . . . . . . 1 . . 1 3 . 1 Misdirections 2 | . . . . . . . . . . . . . . 1 . 1 . . Weapon Failures 9 | . . . . . . . . . . . . . 3 5 . 1 . . Overload Shots 1 | . . . . . . . . . . . . . . . . 1 . . Overflow Damage 519 | . 9 . . . . . . . . 20 18 9 386 25 23 29 . . Projectiles 149 | . . . . . . . . . . 20 18 9 71 25 . 6 . . Explosions 330 | . 9 . . . . . . . . . . . 275 . 23 23 . . Melee 40 | . . . . . . . . . . . . . 40 . . . . . Knockbacks 7 | . . . . . . . . . . . . . 2 1 . 3 . 1 Impact 3 | . . . . . . . . . . . . . 2 1 . . . . Kinetic 4 | . . . . . . . . . . . . . . . . 3 . 1 Secondary . | . . . . . . . . . . . . . . . . . . . Self-Inflicted Damage 468 | . 10 . . . 31 . . . . . . . 349 . 77 1 . . Shots 6 | . . . . . 1 . . . . . . . 4 . 1 . . . Rammed 14 | . 1 . . . . . . . . . . . 6 2 4 1 . . Targets Rammed 14 | . 1 . . . . . . . . . . . 6 2 4 1 . . Kicked . | . . . . . . . . . . . . . . . . . . . Crushed . | . . . . . . . . . . . . . . . . . . . Highest Temperature 330 | . 6 15 330 30 248 57 25 80 136 293 156 207 192 239 108 320 128 259 Average Temperature 80 | . 5 7 111 17 116 33 10 30 48 105 53 54 45 35 37 101 68 95 Received Heat Transfer 3391 | . 114 105 330 . . . 270 . 54 957 36 6 90 765 202 327 . 135 Effects 7 | . . . 3 . 1 . . . . . . . . 1 . 2 . . Energy Bleed 3 | . . . 2 . . . . . . . . . . 1 . . . . Interference 4 | . . . 1 . 1 . . . . . . . . . . 2 . . Siege Activations 1 | . . . . . . . . . . . . . . 1 . . . . Total Turns 11 | . . . . . . . . . . . . . . 11 . . . . Longest Duration 11 | . . . . . . . . . . . . . . 11 . . . . Robots Corrupted 4 | . . . . . . . . . . . . . . 1 . 3 . . Combat Hostiles 2 | . . . . . . . . . . . . . . 1 . 1 . . Parts Fried 5 | . . . . . . . . . . . . . . 4 . 1 . . Impact Corruptions 2 | . . . . . . . . . . . . . 2 . . . . . Robots Melted 3 | . . . . . . . . . . . . . 1 2 . . . . Combat Hostiles 3 | . . . . . . . . . . . . . 1 2 . . . . Parts Melted 21 | . . . 3 . . . . . 1 . 1 . 3 6 1 6 . . Heat Transferred 9057 | . . 37 2331 74 99 37 . 200 710 822 800 350 1350 850 1000 397 . . Parts Sabotaged . | . . . . . . . . . . . . . . . . . . . Parts Stolen . | . . . . . . . . . . . . . . . . . . . Parts Stripped . | . . . . . . . . . . . . . . . . . . . Power Chain Reactions . | . . . . . . . . . . . . . . . . . . . Alert | -11 -10 -10 -9 -9 -9 -8 -8 -8 -8 -8 -7 -7 -7 -7 -7 -7 -7 -7 ------- Run | Yrd Mat Min Mat Min Exi Min Mat Gar Mat Gar Fac Was Fac Gar Fac Gar Fac Gar Peak Influence 1885 | . 351 264 472 135 . 5 190 514 590 1458 824 208 457 1297 730 1885 1004 910 Initial 989 | . . 58 27 125 . . 1 9 250 306 765 187 . 241 680 511 989 702 Average 578 | . 227 189 244 114 . 2 52 263 409 976 679 124 294 780 640 1172 990 742 Maximum Alert Level 5 | . 1 1 2 . . . . 2 2 4 3 1 2 4 3 5 3 3 Low Security (%) 20 | . 39 35 43 100 . 100 100 39 5 . . 60 14 . . . . . Level 1 25 | . 60 64 45 . . . . 36 56 8 . 40 66 18 . . . . Level 2 19 | . . . 11 . . . . 23 38 10 41 . 19 29 87 10 . . Level 3 20 | . . . . . . . . . . 37 58 . . 32 12 37 100 100 Level 4 12 | . . . . . . . . . . 43 . . . 19 . 35 . . Level 5 1 | . . . . . . . . . . . . . . . . 17 . . High Security . | . . . . . . . . . . . . . . . . . . . Max Security . | . . . . . . . . . . . . . . . . . . . Squads Dispatched 13 | . 2 1 . . . . 2 . 2 . . . 3 . 3 . . . Investigation 2 | . 1 . . . . . . . . . . . 1 . . . . . Extermination 1 | . . . . . . . . . . . . . 1 . . . . . Reinforcement 6 | . 1 . . . . . 2 . 1 . . . 1 . 1 . . . Assault 2 | . . 1 . . . . . . . . . . . . 1 . . . Garrison 2 | . . . . . . . . . 1 . . . . . 1 . . . Intercept . | . . . . . . . . . . . . . . . . . . . Searches Triggered . | . . . . . . . . . . . . . . . . . . . Construction Impeded . | . . . . . . . . . . . . . . . . . . . Haulers Reinforced . | . . . . . . . . . . . . . . . . . . . Active Scanning Responses . | . . . . . . . . . . . . . . . . . . . Cargo Convoy Interrupts . | . . . . . . . . . . . . . . . . . . . Stealth | -11 -10 -10 -9 -9 -9 -8 -8 -8 -8 -8 -7 -7 -7 -7 -7 -7 -7 -7 --------- Run | Yrd Mat Min Mat Min Exi Min Mat Gar Mat Gar Fac Was Fac Gar Fac Gar Fac Gar Distress Signals 12 | . 1 . 3 . . . 4 . 3 . . . . . 1 . . . Communications Jammed 192 | . . . . . . . . . . . . . 188 . 4 . . . Distress Signals 192 | . . . . . . . . . . . . . 188 . 4 . . . Times Spotted 324 | . 22 9 28 . 27 3 16 . 20 44 4 6 19 44 27 42 2 11 Peak Tracking Total 10 | . 4 4 6 . 9 3 10 . 3 6 3 2 5 9 7 4 2 3 Tactical Retreats 25 | . 3 . 1 . 3 . . . . 10 . . . 5 3 . . . Traps | -11 -10 -10 -9 -9 -9 -8 -8 -8 -8 -8 -7 -7 -7 -7 -7 -7 -7 -7 ------- Run | Yrd Mat Min Mat Min Exi Min Mat Gar Mat Gar Fac Was Fac Gar Fac Gar Fac Gar Traps Triggered 29 | . 1 . 1 . . . . 4 . 7 2 . . 1 1 12 . . Indirectly . | . . . . . . . . . . . . . . . . . . . Trap Hack Attempts . | . . . . . . . . . . . . . . . . . . . Triggered . | . . . . . . . . . . . . . . . . . . . Disarmed 4 | . . . . . . . 4 . . . . . . . . . . . Reprogrammed . | . . . . . . . . . . . . . . . . . . . Reused . | . . . . . . . . . . . . . . . . . . . Traps Extracted . | . . . . . . . . . . . . . . . . . . . Installed . | . . . . . . . . . . . . . . . . . . . Triggered . | . . . . . . . . . . . . . . . . . . . Machines | -11 -10 -10 -9 -9 -9 -8 -8 -8 -8 -8 -7 -7 -7 -7 -7 -7 -7 -7 ---------- Run | Yrd Mat Min Mat Min Exi Min Mat Gar Mat Gar Fac Was Fac Gar Fac Gar Fac Gar Machines Disabled 45 | . . 2 2 . 5 . . 2 5 7 1 . 4 5 2 9 . 1 Max in Single Turn 4 | . . 1 1 . 1 . . 1 . 2 1 . 4 1 2 1 . 1 Garrison Relay 18 | . . . . . . . . 2 . 7 . . . 3 . 6 . . Machines Repaired . | . . . . . . . . . . . . . . . . . . . Machines Dismantled . | . . . . . . . . . . . . . . . . . . . Machines Sabotaged . | . . . . . . . . . . . . . . . . . . . Overloaded Fab Kills . | . . . . . . . . . . . . . . . . . . . Hacking | -11 -10 -10 -9 -9 -9 -8 -8 -8 -8 -8 -7 -7 -7 -7 -7 -7 -7 -7 --------- Run | Yrd Mat Min Mat Min Exi Min Mat Gar Mat Gar Fac Was Fac Gar Fac Gar Fac Gar Machines Accessed 42 | . 2 . 1 . 2 . 6 . 6 3 1 . 7 4 5 3 2 . Terminals 30 | . 2 . 1 . . . 4 . 4 3 1 . 4 4 3 3 1 . Fabricators 2 | . . . . . . . . . . . . . 1 . 1 . . . Repair Stations 2 | . . . . . . . . . 1 . . . 1 . . . . . Recycling Units . | . . . . . . . . . . . . . . . . . . . Scanalyzers 1 | . . . . . . . 1 . . . . . . . . . . . Garrison Access 5 | . . . . . . . 1 . 1 . . . 1 . 1 . 1 . Total Hacks 90 | . 3 . 3 . 2 . 16 . 16 6 3 . 15 7 10 7 2 . Successful 41 | . . . 2 . 2 . 12 . 9 3 1 . 4 2 3 2 1 . Failed 49 | . 3 . 1 . . . 4 . 7 3 2 . 11 5 7 5 1 . Catastrophic 14 | . 1 . . . . . 1 . 3 . . . 2 2 4 . 1 . Database Lockouts . | . . . . . . . . . . . . . . . . . . . Manual 40 | . 1 . 3 . 1 . 6 . 7 1 3 . 12 1 5 . . . Terminals 70 | . 3 . 3 . . . 8 . 13 6 3 . 11 7 8 7 1 . Fabricators 2 | . . . . . . . . . . . . . 1 . 1 . . . Repair Stations 4 | . . . . . . . . . 2 . . . 2 . . . . . Recycling Units . | . . . . . . . . . . . . . . . . . . . Scanalyzers 7 | . . . . . . . 7 . . . . . . . . . . . Garrison Access 5 | . . . . . . . 1 . 1 . . . 1 . 1 . 1 . Terminal Hacks 20 | . . . . . 2 . 4 . 4 3 1 . 1 2 1 2 . . Record 1 | . . . . . 1 . . . . . . . . . . . . . Robot Analysis 1 | . . . . . . . 1 . . . . . . . . . . . Open Door 1 | . . . . . . . . . . 1 . . . . . . . . Branch Access Points 1 | . . . . . . . . . . . . . 1 . . . . . Emergency Access Points 3 | . . . . . . . . . . 1 . . . 1 . 1 . . Terminal Index 1 | . . . . . . . . . 1 . . . . . . . . . Alert Level 1 | . . . . . . . 1 . . . . . . . . . . . Unreport Threat 4 | . . . . . . . . . 2 . 1 . . . 1 . . . Locate Traps 1 | . . . . . . . 1 . . . . . . . . . . . Disarm Traps 1 | . . . . . . . 1 . . . . . . . . . . . Zone Layout 1 | . . . . . . . . . 1 . . . . . . . . . Garrison Registry 1 | . . . . . . . . . . 1 . . . . . . . . Patrol Navigation 1 | . . . . . . . . . . . . . . . . 1 . . Security Stations 1 | . . . . . . . . . . . . . . 1 . . . . Derelict Proto ID Bank 1 | . . . . . 1 . . . . . . . . . . . . . Fabricator Hacks . | . . . . . . . . . . . . . . . . . . . Repair Station Hacks 3 | . . . . . . . . . 2 . . . 1 . . . . . Scan Component 2 | . . . . . . . . . 1 . . . 1 . . . . . Repair 1 | . . . . . . . . . 1 . . . . . . . . . Recycling Unit Hacks . | . . . . . . . . . . . . . . . . . . . Scanalyzer 7 | . . . . . . . 7 . . . . . . . . . . . Insert Component 4 | . . . . . . . 4 . . . . . . . . . . . Analyze 3 | . . . . . . . 3 . . . . . . . . . . . Garrison Access Hacks 5 | . . . . . . . 1 . 1 . . . 1 . 1 . 1 . Unlock Access 5 | . . . . . . . 1 . 1 . . . 1 . 1 . 1 . Unauthorized Hacks 6 | . . . 2 . . . . . 2 . . . 1 . 1 . . . Terminals 6 | . . . 2 . . . . . 2 . . . 1 . 1 . . . Track 1 | . . . 1 . . . . . . . . . . . . . . . Botnet 4 | . . . . . . . . . 2 . . . 1 . 1 . . . Disrupt 1 | . . . 1 . . . . . . . . . . . . . . . Fabricators . | . . . . . . . . . . . . . . . . . . . Repair Stations . | . . . . . . . . . . . . . . . . . . . Recycling Units . | . . . . . . . . . . . . . . . . . . . Scanalyzers . | . . . . . . . . . . . . . . . . . . . Garrison Access . | . . . . . . . . . . . . . . . . . . . Data Cores Recovered 1 | . . . . . . . . . 1 . . . . . . . . . Used . | . . . . . . . . . . . . . . . . . . . Hacking Detections 34 | . 2 . 1 . . . 3 . 6 3 1 . 7 3 4 3 1 . Full Trace Events 1 | . . . . . . . . . . . . . . 1 . . . . Feedback Events . | . . . . . . . . . . . . . . . . . . . Feedback Blocked . | . . . . . . . . . . . . . . . . . . . Robot Schematics Acquired . | . . . . . . . . . . . . . . . . . . . Robots Built . | . . . . . . . . . . . . . . . . . . . Authchips . | . . . . . . . . . . . . . . . . . . . Time . | . . . . . . . . . . . . . . . . . . . Total Robot Build Rating . | . . . . . . . . . . . . . . . . . . . Part Schematics Acquired 3 | . . . . . . . 3 . . . . . . . . . . . Parts Built . | . . . . . . . . . . . . . . . . . . . Authchips . | . . . . . . . . . . . . . . . . . . . Time . | . . . . . . . . . . . . . . . . . . . Total Part Build Rating . | . . . . . . . . . . . . . . . . . . . Parts Repaired 1 | . . . . . . . . . 1 . . . . . . . . . Time 56 | . . . . . . . . . 56 . . . . . . . . . Parts Recycled . | . . . . . . . . . . . . . . . . . . . Recycled Matter . | . . . . . . . . . . . . . . . . . . . Retrieved Matter . | . . . . . . . . . . . . . . . . . . . Retrieved Components . | . . . . . . . . . . . . . . . . . . . Parts Scanalyzed 3 | . . . . . . . 3 . . . . . . . . . . . Part Schematics Acquired 3 | . . . . . . . 3 . . . . . . . . . . . Parts Damaged 1 | . . . . . . . 1 . . . . . . . . . . . Bothacking | -11 -10 -10 -9 -9 -9 -8 -8 -8 -8 -8 -7 -7 -7 -7 -7 -7 -7 -7 ------------ Run | Yrd Mat Min Mat Min Exi Min Mat Gar Mat Gar Fac Was Fac Gar Fac Gar Fac Gar Used RIF Installer 5 | . . . . . . . . 1 . 2 . . . 1 . 1 . . Command Fork 1 | . . . . . . . . . . . . . . 1 . . . . Signal Jammer 1 | . . . . . . . . . . 1 . . . . . . . . Watcher Feeds 1 | . . . . . . . . . . 1 . . . . . . . . Program Shield 1 | . . . . . . . . . . . . . . . . 1 . . Robots Hacked 41 | . . . . . . . . . . 5 . 6 . 13 10 7 . . Non-combat 6 | . . . . . . . . . . . . . . . 6 . . . Combat 35 | . . . . . . . . . . 5 . 6 . 13 4 7 . . Robot Hacks Applied 42 | . . . . . . . . . . 5 . 6 . 13 11 7 . . parse_system 2 | . . . . . . . . . . . . . . . 2 . . . ignore_repairs 1 | . . . . . . . . . . . . . . . 1 . . . drop_inventory 2 | . . . . . . . . . . . . . . . 2 . . . disable_shields 1 | . . . . . . . . . . . . . . . 1 . . . ignore_targets 6 | . . . . . . . . . . . . 6 . . . . . . broadcast_data 1 | . . . . . . . . . . . . . . . . 1 . . spike_heat 1 | . . . . . . . . . . . . . . . . 1 . . amplify_resonance 3 | . . . . . . . . . . . . . . 1 1 1 . . go_dormant 1 | . . . . . . . . . . . . . . 1 . . . . overwrite_iff 4 | . . . . . . . . . . . . . . 4 . . . . streamctrl_high 1 | . . . . . . . . . . . . . . 1 . . . . formatsys_low 1 | . . . . . . . . . . . . . . . 1 . . . formatsys_high 18 | . . . . . . . . . . 5 . . . 6 3 4 . . Relay Couplers Released 75 | . . . . . . . . 8 . 28 . . . 14 . 25 . . Machine Destruction 75 | . . . . . . . . 8 . 28 . . . 14 . 25 . . Attached 20 | . . . . . . . . . . 5 . 1 . 8 2 4 . . Fabnet Peak Effective % . | . . . . . . . . . . . . . . . . . . . Robots Rewired 14 | . . . . . . . . 6 . 5 . . . 3 . . . . Allies Hacked . | . . . . . . . . . . . . . . . . . . . Hacks Repelled . | . . . . . . . . . . . . . . . . . . . Allies | -11 -10 -10 -9 -9 -9 -8 -8 -8 -8 -8 -7 -7 -7 -7 -7 -7 -7 -7 -------- Run | Yrd Mat Min Mat Min Exi Min Mat Gar Mat Gar Fac Was Fac Gar Fac Gar Fac Gar Total Allies 66 | . . 4 . . . . . 6 . 10 . 18 . 16 5 7 . . Largest Group 18 | . . 3 3 . . . . 6 6 4 . 18 13 4 4 4 1 . Highest-Rated Group 434 | . . 71 71 . . . . 134 134 72 . 434 322 82 82 134 34 . Highest-Rated Ally 39 | . . 31 31 . . . . 39 39 38 . 35 31 31 32 39 34 . Total Orders 1 | . . . . . . . . . . . . . . . 1 . . . DROP 1 | . . . . . . . . . . . . . . . 1 . . . Ally Attacks 694 | . . 12 9 . . . . . 102 74 . 266 109 51 21 50 . . Total Damage 11650 | . . 188 126 . . . . . 1362 1118 . 4521 1780 681 391 1483 . . Kills 80 | . . 2 2 . . . . . 21 9 . 8 15 5 8 10 . . Allies Corrupted . | . . . . . . . . . . . . . . . . . . . Allies Melted 2 | . . . . . . . . . . . . . 1 . . 1 . . Intel | -11 -10 -10 -9 -9 -9 -8 -8 -8 -8 -8 -7 -7 -7 -7 -7 -7 -7 -7 ------- Run | Yrd Mat Min Mat Min Exi Min Mat Gar Mat Gar Fac Was Fac Gar Fac Gar Fac Gar Robot Analysis Total 1 | . . . . . . . 1 . . . . . . . . . . . Derelict Logs Recovered 2 | . . 1 . 1 . . . . . . . . . . . . . . Drone Launches . | . . . . . . . . . . . . . . . . . . . Drone Recoveries . | . . . . . . . . . . . . . . . . . . . Exploration | -11 -10 -10 -9 -9 -9 -8 -8 -8 -8 -8 -7 -7 -7 -7 -7 -7 -7 -7 ------------- Run | Yrd Mat Min Mat Min Exi Min Mat Gar Mat Gar Fac Was Fac Gar Fac Gar Fac Gar Turns Passed 16494 | . 438 503 801 448 1440 106 715 1236 1134 2247 682 635 1396 1994 630 1647 299 143 Spaces Moved 8100 | 1 284 414 334 275 727 43 293 475 435 760 250 293 807 1040 349 999 238 83 Core . | . . . . . . . . . . . . . . . . . . . Treads 5818 | . . . 334 243 715 43 293 475 435 760 250 293 807 1040 130 . . . Legs 50 | 1 49 . . . . . . . . . . . . . . . . . Wheels 2232 | . 235 414 . 32 12 . . . . . . . . . 219 999 238 83 Hover . | . . . . . . . . . . . . . . . . . . . Flight . | . . . . . . . . . . . . . . . . . . . Fastest Speed 105 | 120 105 105 160 155 155 240 160 245 243 243 242 160 160 160 130 108 123 123 Average Speed 172 | 120 107 105 160 159 162 240 215 245 247 246 242 196 160 160 145 121 123 123 Slowest Speed 330 | 120 120 105 160 160 240 240 246 245 250 330 245 243 240 160 160 130 123 123 Overloaded Moves . | . . . . . . . . . . . . . . . . . . . Propulsion Burnouts . | . . . . . . . . . . . . . . . . . . . Robots Hopped . | . . . . . . . . . . . . . . . . . . . Cave-ins Triggered 1 | . . . . . . . . . . . . 1 . . . . . . Exploration Rate (%) 47 | 2 61 81 35 44 78 15 33 64 42 85 11 90 35 85 14 93 8 22 Regions Visited 18 Branch Regions 4 Pre-discovered Areas 2 | . . . . 1 1 . . . . . . . . . . . . . Known Exits Taken 5 | . . . . . . . 1 . 1 . . . 1 . 1 . 1 . Unknown Exits Taken 7 | 1 1 1 1 1 1 1 . . . . . . . . . . . . Scrap Searched 3 | . . 2 . 1 . . . . . . . . . . . . . . Spaces Dug 9 | . . . . . . . . . . 4 . . . 3 . 2 . . Terrain Destroyed 245 | . 14 19 . . 11 1 . . 2 10 1 1 49 58 20 35 . 24 Melee 6 | . . . . . . . . . . 4 . . . 1 . 1 . . Projectile 42 | . . . . . 1 1 . . 2 3 1 1 3 14 . 15 . 1 AOE 197 | . 14 19 . . 10 . . . . 3 . . 46 43 20 19 . 23 Terrain Rammed . | . . . . . . . . . . . . . . . . . . . Walls Destroyed . | . . . . . . . . . . . . . . . . . . . Machines Disabled . | . . . . . . . . . . . . . . . . . . . Actions | -11 -10 -10 -9 -9 -9 -8 -8 -8 -8 -8 -7 -7 -7 -7 -7 -7 -7 -7 --------- Run | Yrd Mat Min Mat Min Exi Min Mat Gar Mat Gar Fac Was Fac Gar Fac Gar Fac Gar Total 9619 | . 348 457 482 281 902 45 343 538 475 968 293 337 861 1242 424 1274 243 106 Wait 185 | . 11 9 33 . 66 2 6 . 2 8 8 1 1 18 4 16 . . Move 8086 | . 283 413 333 274 726 42 293 474 435 759 250 291 807 1039 349 998 237 83 Hop . | . . . . . . . . . . . . . . . . . . . Pick Up 136 | . 8 10 14 2 17 . 7 9 5 10 3 4 2 18 5 21 . 1 Fast Attach 77 | . 2 2 6 . 5 . 5 2 6 10 5 6 5 3 5 12 3 . Attach 84 | . . 2 3 . 14 . 1 3 . 10 3 4 2 9 6 22 1 4 Detach 14 | . . . . . 4 . 1 . . . . 2 1 . . 4 . 2 Swap 80 | . 6 2 10 1 4 . 3 1 1 18 1 4 3 14 4 8 . . Drop 135 | . 2 4 21 2 16 . 6 5 10 4 5 11 7 12 10 16 2 2 Fire 645 | . 35 15 62 2 50 1 21 14 16 96 18 13 26 102 36 124 . 14 Melee 18 | . . . . . . . . . . 13 . . . 1 . 4 . . Ram 6 | . 1 . . . . . . . . . . . . . 4 1 . . Kick . | . . . . . . . . . . . . . . . . . . . Crush 8 | . . . . . . . . . . . . . 6 2 . . . . Escape Stasis 59 | . . . . . . . . . . 10 . 1 . . . 48 . . Rewire 86 | . . . . . . . . 30 . 30 . . 1 24 1 . . . Trap . | . . . . . . . . . . . . . . . . . . . Miscellaneous . | . . . . . . . . . . . . . . . . . . . Route ------- -11/Scrapyard -10/Materials (discovered 2 exits: *Mat / [*Min]) -10/Mines -9/Materials -9/Mines (discovered 2 exits: *Mat / *Exi) -9/Exiles -8/Mines -8/Materials -8/Garrison (discovered 2 exits: *Mat x2) -8/Materials (discovered 3 exits: *Fac / [*Sto] / Gar) -8/Garrison (discovered 3 exits: *Fac x3) -7/Factory -7/Waste -7/Factory (discovered 4 exits: [*Fac] / Low x2 / Gar) -7/Garrison (discovered 4 exits: [*Fac x3] / *Fac) -7/Factory -7/Garrison (discovered 4 exits: [*Fac x3] / *Fac) -7/Factory -7/Garrison History --------- Turn | Location | Event 1 | -11/Scrapyard | Discovered new exit (range 0) 1 | -11/Scrapyard | Entered Materials 86 | -10/Materials | Discovered new exit (range 16) 311 | -10/Materials | Build established: Mutant 373 | -10/Materials | Discovered new exit (range 4) 439 | -10/Materials | Entered Mines 440 | -10/Mines | Met a Derelict testing a Signal Generator 540 | -10/Mines | Destroyed 7 combat bots 549 | -10/Mines | Learned Materials garrison access intel 646 | -10/Mines | Core integrity fell below 50% 676 | -10/Mines | Lost 3 parts (1u2w) 683 | -10/Mines | Discovered new exit (range 12) 688 | -10/Mines | Received a Mining Laser from a helpful Derelict 828 | -10/Mines | Received a Rocket Launcher from a helpful Derelict 942 | -10/Mines | Entered Materials 942 | -9/Materials | Accompanied by 3 allies 942 | -9/Materials | Evolved 2 slots: Propulsion x1, Utility x1 947 | -9/Materials | Led the pair of lost Derelicts to an unsafe place 1241 | -9/Materials | Build established: Scavenger-Mutant 1685 | -9/Materials | Discovered new exit (range 15) 1743 | -9/Materials | Entered Mines 1773 | -9/Mines | Met a Derelict bent on vengeance 1911 | -9/Mines | A weapon hastily lodged in a ceiling crevice suddenly fell to the ground 1951 | -9/Mines | Discovered new exit (range 9) 2015 | -9/Mines | Learned location of Storage (-8) 2015 | -9/Mines | Learned Materials emergency access door positions 2038 | -9/Mines | Deemed a non-threat by the Exiles lab entrance 2038 | -9/Mines | Discovered new exit (range 5) 2120 | -9/Mines | Assembled infested the area 2191 | -9/Mines | Entered Exiles 2237 | -9/Exiles | Met 8R-AWN 2258 | -9/Exiles | Met EX-HEX 2323 | -9/Exiles | Met EX-DEC 2330 | -9/Exiles | Learned location of Zion (-6) 2392 | -9/Exiles | Visited The Gauntlet 2953 | -9/Exiles | Met EX-BIN 2977 | -9/Exiles | Aligned with FarCom system 2978 | -9/Exiles | Given EX-Vault access code 3015 | -9/Exiles | Opened EX-Vault 3023 | -9/Exiles | Found Potential Leg 3031 | -9/Exiles | Found Latent Energy Streamer 3067 | -9/Exiles | Warned to stay clear of 0b10 Research branches 3182 | -9/Exiles | Attacked by the Exiles 3325 | -9/Exiles | Core integrity fell below 50% 3421 | -9/Exiles | Destroyed 8R-AWN 3437 | -9/Exiles | Found Prototype Device 3437 | -9/Exiles | Identified AS-neutralizer No. 17b 3443 | -9/Exiles | Found Prototype Ballistic Gun 3443 | -9/Exiles | Identified 8R-AWN's Boregun 3445 | -9/Exiles | Lost 12 parts (1p4n3u4w) 3449 | -9/Exiles | Found Prototype Protection 3475 | -9/Exiles | Found Prototype Processor 3544 | -9/Exiles | Core integrity fell below 20% 3610 | -9/Exiles | Discovered new exit (range 10) 3631 | -9/Exiles | Left Exiles lab with Potential Leg 3631 | -9/Exiles | Entered Mines 3643 | -8/Mines | Discovered new exit (range 12) 3737 | -8/Mines | Entered Materials 3737 | -8/Materials | Evolved 2 slots: Propulsion x1, Utility x1 3739 | -8/Materials | Loaded intel: 1 garrison access location 4020 | -8/Materials | Identified Exp. Targeting Computer 4020 | -8/Materials | Identified 8R-AWN's Armor/EX 4250 | -8/Materials | Build established: Mutant 4452 | -8/Materials | Identified exit to Garrison 4452 | -8/Materials | Entered Garrison 4452 | -8/Garrison | Discovered recently destroyed garrison 4475 | -8/Garrison | Lost 3 parts (1n2u) 4737 | -8/Garrison | Garrison Relay disabled 4742 | -8/Garrison | Build established: Scavenger-Mutant 4937 | -8/Garrison | Garrison Relay disabled 4984 | -8/Garrison | Installed Relay Interface Framework 5077 | -8/Garrison | Discovered new exit (range 11) 5591 | -8/Garrison | Discovered new exit (range 11) 5688 | -8/Garrison | Entered Materials 5688 | -8/Materials | Accompanied by 6 allies 5757 | -8/Materials | Repaired Rnf. Fission Core? 6374 | -8/Materials | Build established: Mutant 6561 | -8/Materials | Discovered new exit (range 7) 6774 | -8/Materials | Discovered new exit (range 4) 6788 | -8/Materials | Garrison activated, responded to threat 6822 | -8/Materials | Identified exit to Garrison 6822 | -8/Materials | Entered Garrison 6822 | -8/Garrison | Accompanied by 2 allies 6901 | -8/Garrison | Expanded RIF knowledge: Signal Jamming 6980 | -8/Garrison | Triggered checkpoint 7026 | -8/Garrison | Garrison Relay disabled 7190 | -8/Garrison | Triggered checkpoint 7250 | -8/Garrison | Garrison Relay disabled 7250 | -8/Garrison | Garrison Relay disabled 7280 | -8/Garrison | Garrison Relay disabled 7282 | -8/Garrison | Garrison Relay disabled 7347 | -8/Garrison | Lost 5 parts (2n1u2w) 7349 | -8/Garrison | Core integrity fell below 50% 7467 | -8/Garrison | Discovered new exit (range 12) 7540 | -8/Garrison | Triggered checkpoint 7606 | -8/Garrison | Expanded RIF knowledge: Watcher Feeds 7657 | -8/Garrison | Build established: Scavenger-Mutant 7744 | -8/Garrison | Triggered checkpoint 7786 | -8/Garrison | Triggered checkpoint 7959 | -8/Garrison | Discovered new exit (range 9) 8000 | -8/Garrison | Triggered checkpoint 8056 | -8/Garrison | Lost 3 allies 8081 | -8/Garrison | Build established: Mutant 8093 | -8/Garrison | Garrison Relay disabled 8134 | -8/Garrison | Triggered checkpoint 8189 | -8/Garrison | Garrison Relay disabled 8406 | -8/Garrison | Build established: Bothacker-Mutant 8556 | -8/Garrison | Triggered checkpoint 8716 | -8/Garrison | Discovered new exit (range 13) 8736 | -8/Garrison | Discovered new exit (range 35) 8736 | -8/Garrison | Discovered new exit (range 12) 8736 | -8/Garrison | Discovered new exit (range 61) 8759 | -8/Garrison | Spotted B-75 Beast 8817 | -8/Garrison | Core integrity fell below 20% 8830 | -8/Garrison | Destroyed B-75 Beast 8847 | -8/Garrison | Lost 7 parts (3n2u2w) 9069 | -8/Garrison | Entered Factory 9069 | -7/Factory | Evolved 2 slots: Power x1, Utility x1 9711 | -7/Factory | Found Launcher Loader 9751 | -7/Factory | Sucked down chute 9751 | -7/Factory | Entered Waste 9761 | -7/Waste | Spotted C-40 Crusher 9778 | -7/Waste | Spotted C-40 Crusher 9778 | -7/Waste | Spotted C-40 Crusher 9795 | -7/Waste | Spotted C-40 Crusher 9947 | -7/Waste | Spotted C-40 Crusher 9949 | -7/Waste | Spotted C-40 Crusher 9964 | -7/Waste | Crushed by Compactor (1 part destroyed, 2 dropped) 9994 | -7/Waste | Warlord forces began an assault 10017 | -7/Waste | Allies destroyed C-40 Crusher 10023 | -7/Waste | Allies destroyed C-40 Crusher 10078 | -7/Waste | Destroyed C-40 Crusher 10088 | -7/Waste | Allies destroyed C-40 Crusher 10105 | -7/Waste | Crushed by falling debris 10108 | -7/Waste | Allies destroyed C-40 Crusher 10154 | -7/Waste | Found Damper Plating 10286 | -7/Waste | Discovered new exit (range 15) 10386 | -7/Waste | Entered Factory 10386 | -7/Factory | Accompanied by 13 allies 10547 | -7/Factory | Lost 4 allies 10632 | -7/Factory | Identified exit to Lower Caves 11284 | -7/Factory | Discovered new exit (range 6) 11354 | -7/Factory | Murdered 4 allies 11363 | -7/Factory | System corruption reached 10% 11366 | -7/Factory | P-60 Hacker assimilated allied MX-NYF(g) 11782 | -7/Factory | Identified exit to Garrison 11782 | -7/Factory | Entered Garrison 11827 | -7/Garrison | Expanded RIF knowledge: Command Fork 11853 | -7/Garrison | Learned Factory security intel 11910 | -7/Garrison | Triggered checkpoint 11968 | -7/Garrison | Garrison Relay disabled 12080 | -7/Garrison | Triggered checkpoint 12108 | -7/Garrison | Triggered checkpoint 12132 | -7/Garrison | Lost 6 allies 12226 | -7/Garrison | Triggered checkpoint 12369 | -7/Garrison | Discovered new exit (range 3) 12402 | -7/Garrison | Triggered checkpoint 12419 | -7/Garrison | Discovered new exit (range 5) 12520 | -7/Garrison | Garrison Relay disabled 12670 | -7/Garrison | Triggered checkpoint 12740 | -7/Garrison | Triggered checkpoint 12767 | -7/Garrison | Garrison Relay disabled 12831 | -7/Garrison | Discovered new exit (range 10) 12835 | -7/Garrison | Build established: Botlord-Mutant 12986 | -7/Garrison | Discovered new exit (range 13) 13036 | -7/Garrison | Spotted B-75 Beast 13124 | -7/Garrison | Triggered checkpoint 13776 | -7/Garrison | Entered Factory 13776 | -7/Factory | Accompanied by 3 allies 14176 | -7/Factory | First assault squad dispatched 14350 | -7/Factory | Lost 4 allies 14364 | -7/Factory | Garrison activated, responded to threat 14406 | -7/Factory | Identified exit to Garrison 14406 | -7/Factory | Entered Garrison 14422 | -7/Garrison | Garrison Relay disabled 14488 | -7/Garrison | Triggered checkpoint 14566 | -7/Garrison | Core integrity fell below 50% 14602 | -7/Garrison | Triggered checkpoint 14681 | -7/Garrison | Found Hvy. Reflective Plating 14848 | -7/Garrison | Triggered checkpoint 14848 | -7/Garrison | Triggered checkpoint 14921 | -7/Garrison | Build established: Bothacker-Mutant 14946 | -7/Garrison | Spotted B-75 Beast 14975 | -7/Garrison | Allies destroyed B-75 Beast 14988 | -7/Garrison | Garrison Relay disabled 15044 | -7/Garrison | Discovered new exit (range 14) 15115 | -7/Garrison | Rescued a captive Derelict 15116 | -7/Garrison | Rescued a captive Derelict 15165 | -7/Garrison | Garrison Relay disabled 15178 | -7/Garrison | Triggered checkpoint 15318 | -7/Garrison | Triggered checkpoint 15380 | -7/Garrison | Triggered checkpoint 15427 | -7/Garrison | Lost 3 parts (1p1u1w) 15431 | -7/Garrison | Garrison Relay disabled 15517 | -7/Garrison | Discovered new exit (range 13) 15550 | -7/Garrison | Triggered checkpoint 15572 | -7/Garrison | Core integrity fell below 20% 15593 | -7/Garrison | Discovered new exit (range 6) 15688 | -7/Garrison | Discovered new exit (range 13) 15718 | -7/Garrison | Triggered checkpoint 15760 | -7/Garrison | Expanded RIF knowledge: Program Shield 15772 | -7/Garrison | Garrison Relay disabled 15870 | -7/Garrison | Found Hvy. Reflective Plating 15891 | -7/Garrison | Build established: Scavenger-Mutant 16053 | -7/Garrison | Entered Factory 16053 | -7/Factory | Accompanied by 1 ally 16337 | -7/Factory | Identified exit to Garrison 16352 | -7/Factory | Entered Garrison 16456 | -7/Garrison | Triggered checkpoint 16487 | -7/Garrison | Triggered checkpoint 16489 | -7/Garrison | Triggered checkpoint 16495 | -7/Garrison | Destroyed by Y-54 Guardian with Gatling Laser Last Messages --------------- 16456_ Beams of light sweep through the air. An alarm sounds. 16465_ Dropped Smartbomb Launcher. 16467_ Slug penetrates L-41 Fighter. 16467_ L-41 Fighter knocked back. 16468_ System corrupted: IFF burst signal emitted. 16469_ Slug penetrates L-41 Fighter. 16469_ L-41 Fighter destroyed. 16472_ Acquired 19 matter. 16474_ Acquired Smartbomb Launcher. 16478_ C-30 ARC bursts open, deploying its payload. 16478_ B-48 Gladiator unfolds itself. 16478_ G-47 Trooper unfolds itself. 16479_ Dropped Hvy. Mass Driver. 16482_ B-48 Gladiator destroyed. 16482_ G-47 Trooper destroyed. 16485_ System corrupted: Component data lost. 16485_ Acquired 35 matter. 16487_ G-47 Trooper destroyed. 16487_ Beams of light sweep through the air. An alarm sounds. 16493_ The unstable cave ceiling collapses. Map ----- +----------------------------------------------------+ | ?????????????????????????????????????????????????? | | ?????????????????????????????????????????????????? | | ?????????????????????????????????????????????????? | | ?????????????????????????????????????????????????? | | ?????????????????????????????????????????????????? | | ?????????????????????????????????????????????????? | | ?????????????????????????????????????????????????? | | ?????????????????????????????????????????????????? | | ?????????????????????????????????????????????????? | | ???????????????????###"##""""????????????????????? | | ?????????????????? ?????????????????? | | ??????????????????? ???????????????? | | ??????????????????? % ??????????????? | | ??????????????????? Y # =# #??????????????? | | ???????????????????# Y # % #??????????????? | | ???????????????????" "??????????????? | | ???????????????????" "??????????????? | | ???????????????????" "??????????????? | | ???????????????????" "??????????????? | | ???????????????????# #??????????????? | | ???????????????????# # #??????????????? | | ???????????????????# #??????????????? | | ???????????????????# #??????????????? | | ???????????????????# ]= #??????????????? | | ???????????????????#% ## ! ## #??????????????? | | ???????????????????# ##@ #???????????????????? | | ???????????????????# ## ####???????????????????? | | ???????????????????# # ??????????????????????? | | ???????????????????# # ??????????????????????? | | ???????????????????# ## ##?????????????????????? | | ???????????????????# ####??????????????????????? | | #################### #?????????????????????????? | | #?????????????????????????? | | #?????????????????????????? | | #?????????????????????????? | | ######################?????????????????????????? | | #??????????????????????????????????????????????? | | #??????????????????????????????????????????????? | | #??????????????????????????????????????????????? | | #??????????????????????????????????????????????? | | / #??????????????????????????????????????????????? | | = #??????????????????????????????????????????????? | | #??????????????????????????????????????????????? | | #??????????????????????????????????????????????? | | #??????????????????????????????????????????????? | | %=#??????????????????????????????????????????????? | | = #??????????????????????????????????????????????? | | #??????????????????????????????????????????????? | | #??????????????????????????????????????????????? | | = #??????????????????????????????????????????????? | +----------------------------------------------------+ Best States ------------- Heat Dissipation 62 Energy Generation 38 Energy Capacity 550 Matter Stores 300 Matter Capacity 300 Sight Range 18 Terrain Scan Density 10 Jamming Range 16 Armor Coverage 600 Resistance: KI 30 Resistance: TH 25 Weapon Cycling 25 Evasion (%) 55 Targeting Accuracy 12 Recoil Reduction 4 Salvage Targeting 3 Relay Coupler Types 4 Relay Coupler Value 80 Authchip Count 1 Item Schematics ----------------- Adv. Myomer Leg | -8/Materials | Scanalyzed Exp. Targeting Computer | -8/Materials | Scanalyzed Arm. Treads | -8/Materials | Scanalyzed Robot Schematics ------------------ None Fabricated ------------ Nothing Alien Tech Used ----------------- None Achievements -------------- None Challenges ------------ None Game ------ Seed MiningMassProcessor Manual? 0 Play Time 01:41:36 Cumulative 390.8 hours Start 2024.05.16 @ 14:13:25 End 2024.05.17 @ 01:12:45 Sessions 5 Manual Loads 0 Difficulty Rogue Special Mode None Game No. 401 Rogue 401 Adventurer 0 Explorer 0 Win Type - Total 30 Types 16/3/5/1/2/0/3/0/0 Lore% 88 Gallery% 88 Achievement% 82 Wizard Run 0 Options --------- Layout 0 ASCII 0 Keyboard 0 Movement Arrows Keybinds 0 Fullscreen 2 Font 24/Smallcaps Map View 76x50 Zoom Use 0% Tactical HUD 1 Map Filters NONE Filters NONE Steam 1 RUN: 8ef50ac1-e91e-47f2-813e-014266d8d558